bitfinex/quotes_SOLUSD_20260208
["timestamp","ask_amount","ask_price","bid_price","bid_amount"]
[1770590518324,0.45209634,86.907,86.883,0.37924939]
[1770590518487,0.65209634,86.9,86.875,11.89003951]
[1770590519306,0.2,86.9,86.876,0.37924939]
[1770590519708,0.45209634,86.899,86.876,0.37924939]
[1770590520407,0.2,86.9,86.876,0.37924939]
[1770590521814,0.2,86.9,86.877,11.88977576]
[1770590521995,0.45209634,86.899,86.877,11.88977576]
[1770590522318,0.45209634,86.899,86.877,11.51052637]
[1770590524325,0.2,86.9,86.877,0.37924939]
[1770590526319,0.2,86.9,86.878,11.51039388]
[1770590526528,0.2,86.9,86.879,0.37924939]
[1770590526825,0.45209634,86.915,86.88,0.17924939]
[1770590528424,0.45209634,86.915,86.853,57.56853534]
[1770590528425,0.45209634,86.925,86.891,0.17924939]
[1770590530234,0.2,86.93,86.901,0.17924939]
[1770590530406,0.2,86.93,86.903,0.17924939]
[1770590531917,0.2,86.93,86.904,11.68619958]
[1770590532124,0.2,86.93,86.905,0.17924939]
[1770590533015,0.2,86.93,86.904,11.50695019]
[1770590533016,0.02075061,86.93,86.91,10.90596704]
[1770590533820,0.02075061,86.93,86.904,40.27432568]
[1770590536130,0.02075061,86.93,86.91,10.90596704]
[1770590537339,0.02075061,86.93,86.891,97.82371016]
[1770590537340,0.5,86.929,86.891,11.50867178]
[1770590537513,0.5,86.919,86.891,11.50867178]
[1770590538218,10.90596704,86.92,86.871,11.51132138]
[1770590538219,0.5,86.917,86.871,11.51132138]
[1770590538910,0.5,86.917,86.871,40.28962484]
[1770590539429,0.5,86.917,86.871,11.51132138]
[1770590539811,0.5,86.909,86.871,11.51132138]
[1770590540225,10.90596704,86.9,86.851,40.29890271]
[1770590540530,11.50642058,86.908,86.851,40.29890271]
[1770590540531,0.5,86.889,86.854,5.13032502]
[1770590540843,0.5,86.889,86.851,40.29890271]
[1770590541529,0.5,86.879,86.84,28.78843302]
[1770590542406,0.5,86.877,86.84,28.78843302]
[1770590543142,0.5,86.877,86.84,40.30386369]
[1770590543815,0.5,86.877,86.84,11.51543067]
[1770590544734,0.5,86.875,86.84,11.51543067]
[1770590547629,0.45760113,86.869,86.834,11.51612381]
[1770590547837,10.90596704,86.86,86.839,74.53217951]
[1770590549630,11.51291173,86.859,86.839,74.53217951]
[1770590550730,10.90596704,86.85,86.839,74.53217951]
[1770590550929,10.90596704,86.85,86.815,11.51869408]
[1770590551322,10.90596704,86.85,86.819,11.51810385]
[1770590551821,10.90596704,86.85,86.804,28.80035949]
[1770590551822,10.90596704,86.85,86.814,0.5]
[1770590553240,10.90596704,86.85,86.815,12.01874676]
[1770590555870,10.90596704,86.85,86.816,0.5]
[1770590556028,22.42014153,86.85,86.816,0.5]
[1770590559042,4.07919546,86.85,86.818,0.5]
[1770590561146,4.07919546,86.85,86.82,0.5]
[1770590563051,11.51423735,86.849,86.82,0.5]
[1770590564055,4.07919546,86.87,86.822,0.5]
[1770590564237,11.51065887,86.876,86.831,0.5]
[1770590565352,11.51065887,86.876,86.833,0.5]
[1770590568242,11.51065887,86.876,86.835,0.5]
[1770590569335,32.84806154,86.9,86.841,0.5]
[1770590569655,32.84806154,86.9,86.851,0.5]
[1770590570655,44.3555414,86.9,86.853,0.5]
[1770590571755,15.58667532,86.9,86.855,0.5]
[1770590572257,44.35537497,86.9,86.855,0.5]
[1770590573362,44.35537497,86.9,86.857,0.5]
[1770590575148,44.35537497,86.9,86.86,0.8]
[1770590575447,44.35537497,86.9,86.861,0.5]
[1770590576335,44.35537497,86.9,86.863,0.5]
[1770590576961,44.35090253,86.9,86.863,0.5]
[1770590577652,11.50747986,86.9,86.863,0.5]
[1770590578355,11.50747986,86.9,86.86,0.8]
[1770590578356,4.07472302,86.92,86.871,0.5]
[1770590580661,11.50496439,86.919,86.873,0.5]
[1770590581044,4.07472302,86.9,86.864,0.5]
[1770590581240,4.07472302,86.89,86.861,0.5]
[1770590582058,4.07472302,86.9,86.861,0.5]
[1770590582262,11.50761228,86.899,86.865,11.51209219]
[1770590583757,11.50761228,86.899,86.865,0.5]
[1770590587943,11.50761228,86.899,86.866,12.01198397]
[1770590589041,11.50761228,86.899,86.866,0.5]
[1770590592854,11.50761228,86.899,86.868,0.5]
[1770590596872,28.76609099,86.908,86.87,0.5]
[1770590598378,4.07472302,86.9,86.861,0.5]
[1770590598674,4.07472302,86.9,86.868,11.51158739]
[1770590598967,11.50761228,86.899,86.868,0.5]
[1770590600472,11.50761228,86.899,86.869,11.51158641]
[1770590601368,11.50761228,86.899,86.852,28.78455075]
[1770590601668,11.50761228,86.899,86.869,0.5]
[1770590603359,11.50761228,86.899,86.869,12.01146102]
[1770590603563,11.50761228,86.899,86.87,0.5]
[1770590610854,11.50761228,86.899,86.872,0.5]
[1770590612174,11.50628818,86.909,86.872,0.5]
[1770590612782,4.07472302,86.92,86.874,0.5]
[1770590616772,11.50496439,86.919,86.876,0.5]
[1770590616969,11.50420854,86.925,86.876,0.5]
[1770590617164,4.09547363,86.93,86.881,0.5]
[1770590617165,0.02075061,86.93,86.881,0.5]
[1770590617570,0.02075061,86.93,86.891,0.5]
[1770590618676,0.02075061,86.93,86.901,0.5]
[1770590618893,0.02075061,86.93,86.903,0.5]
[1770590620386,0.1,86.95,86.911,0.48962469]
[1770590621196,0.1,86.95,86.931,0.48962469]
[1770590622273,0.1,86.96,86.933,0.48288719]
[1770590624488,0.12075061,86.98,86.941,0.48288719]
[1770590624691,0.22075061,86.986,86.941,0.48288719]
[1770590625077,4.17472302,86.99,86.94,4.87472302]
[1770590625078,0.1,86.99,86.961,0.45640639]
[1770590626673,4.27472302,87.01,86.964,0.45640639]
[1770590626869,4.07472302,87.0,86.964,0.45640639]
[1770590627174,4.27472302,87.01,86.964,0.45640639]
[1770590627778,0.2,87.01,86.964,0.45640639]
[1770590628087,0.2,87.01,86.97,4.07472302]
[1770590628281,0.2,87.01,86.971,0.45640639]
[1770590628692,0.2,87.01,86.97,4.07472302]
[1770590628693,0.46042063,87.009,86.965,0.45640639]
[1770590628880,0.46042063,87.009,86.967,0.45640639]
[1770590628881,0.46042063,86.999,86.967,0.45640639]
[1770590629197,0.46042063,86.999,86.94,0.8]
[1770590629198,0.46042063,86.989,86.953,0.45640639]
[1770590629397,40.22572376,87.009,86.941,0.45640639]
[1770590629398,0.46042063,86.979,86.941,0.45640639]
[1770590629998,0.46042063,86.979,86.951,11.50062529]
[1770590630377,0.46042063,86.979,86.952,0.45640639]
[1770590630785,0.46042063,86.977,86.945,0.45640639]
[1770590631190,0.46042063,86.999,86.951,0.45640639]
[1770590632390,0.46042063,86.998,86.953,0.45640639]
[1770590633477,0.46042063,86.998,86.961,0.45640639]
[1770590633701,0.2,87.01,86.971,0.45640639]
[1770590633876,0.46042063,87.009,86.971,0.45640639]
[1770590634579,0.46042063,87.009,86.97,4.07472302]
[1770590634580,0.46042063,87.009,86.973,0.45640639]
[1770590634788,11.6930026,87.01,86.972,11.49795336]
[1770590634789,0.2,87.01,86.981,0.45640639]
[1770590635873,0.2,87.01,86.991,0.45640639]
[1770590636079,0.1,87.03,86.994,5.36086188]
[1770590636281,0.1,87.03,86.975,5.13032502]
[1770590636282,0.1,87.03,87.011,0.45640639]
[1770590636693,0.46042063,87.054,87.013,0.45640639]
[1770590637289,0.46042063,87.054,87.02,4.05949534]
[1770590637494,0.56042063,87.05,87.021,0.45640639]
[1770590637803,0.1,87.05,87.021,0.45640639]
[1770590638902,0.1,87.05,87.023,0.45640639]
[1770590639094,0.1,87.07,87.041,0.45640639]
[1770590639405,0.1,87.07,87.051,0.45640639]
[1770590640701,0.46042063,87.059,87.019,0.45640639]
[1770590640898,0.46042063,87.057,87.019,0.45640639]
[1770590641099,0.46042063,87.049,87.012,0.45640639]
[1770590641286,0.46042063,87.049,87.004,0.45640639]
[1770590641597,0.46042063,87.039,86.996,0.45640639]
[1770590642501,0.46042063,87.029,86.996,0.45640639]
[1770590642801,0.46042063,87.029,86.988,11.95218182]
[1770590642981,0.46042063,87.027,86.988,11.95218182]
[1770590643183,0.46042063,87.027,86.989,11.95211274]
[1770590643379,0.46042063,87.027,86.989,0.45640639]
[1770590645201,0.46042063,87.025,86.99,4.51590173]
[1770590645402,0.46042063,87.025,86.991,0.45640639]
[1770590645924,0.46042063,87.025,87.0,4.05949534]
[1770590647502,0.46042063,87.035,87.002,0.45640639]
[1770590647709,0.46042063,87.042,87.011,0.45640639]
[1770590649809,0.46042063,87.042,87.012,11.94907406]
[1770590650108,0.46042063,87.042,87.013,0.45640639]
[1770590650502,11.48714518,87.054,87.013,0.45640639]
[1770590650795,0.46042063,87.055,87.012,11.49266767]
[1770590650796,0.46042063,87.061,87.021,0.45640639]
[1770590651814,11.48633126,87.06,87.023,0.45640639]
[1770590652004,0.46042063,87.059,87.023,0.45640639]
[1770590652908,0.46042063,87.059,87.02,4.05949534]
[1770590652909,11.48659514,87.058,87.031,0.45640639]
[1770590653221,0.46042063,87.057,87.03,11.49021459]
[1770590653439,0.46042063,87.057,87.032,11.49002665]
[1770590653914,0.46042063,87.057,87.029,0.45640639]
[1770590653915,0.46042063,87.057,87.031,0.45640639]
[1770590654117,0.46042063,87.057,87.021,0.45640639]
[1770590655716,0.46849419,87.055,87.02,1.0]
[1770590656019,0.49934891,87.049,87.009,11.97391767]
[1770590656420,0.49934891,87.049,87.014,11.49234343]
[1770590656798,0.49934891,87.049,87.014,11.49236534]
[1770590658321,11.48791471,87.048,87.014,11.49236534]
[1770590658530,0.49934891,87.047,87.015,0.47046877]
[1770590661327,0.49934891,87.045,87.016,11.49213937]
[1770590661519,0.49934891,87.045,87.017,0.47046877]
[1770590662324,0.49934891,87.045,87.003,0.47046877]
[1770590662524,0.49934891,87.039,87.003,0.47046877]
[1770590663636,0.49934891,87.037,87.003,0.47046877]
[1770590664215,0.49934891,87.037,87.004,0.47046877]
[1770590666113,0.49934891,87.037,87.0,4.05949534]
[1770590666114,0.49934891,87.048,87.006,0.47046877]
[1770590666325,0.49934891,87.048,87.011,0.47046877]
[1770590668139,0.49934891,87.048,87.013,0.47046877]
[1770590670136,0.49934891,87.048,87.015,0.47046877]
[1770590670337,0.49934891,87.046,87.015,0.47046877]
[1770590670937,0.49934891,87.046,87.01,2.8]
[1770590671239,0.49934891,87.046,86.986,28.7400469]
[1770590671240,0.49934891,87.039,87.002,0.47046877]
[1770590671420,0.49934891,87.039,87.003,0.47046877]
[1770590671623,0.49934891,87.039,87.006,0.47046877]
[1770590671818,0.49934891,87.039,87.01,0.47046877]
[1770590672152,0.49934891,87.041,87.014,0.47046877]
[1770590672453,0.49934891,87.039,87.014,0.47046877]
[1770590672741,0.49934891,87.039,87.003,0.47046877]
[1770590672933,0.49934891,87.039,87.004,0.47046877]
[1770590673824,0.49934891,87.039,86.957,5.36086188]
[1770590673825,0.49934891,87.029,86.982,0.47046877]
[1770590674020,0.49934891,87.029,86.931,105.4]
[1770590674021,0.49934891,87.019,86.971,0.47046877]
[1770590674217,0.49934891,87.017,86.971,0.47046877]
[1770590674418,0.49934891,87.009,86.971,0.47046877]
[1770590676241,0.49934891,87.007,86.971,0.47046877]
[1770590678343,0.49934891,87.005,86.971,0.47046877]
[1770590680648,11.49372442,87.004,86.971,0.47046877]
[1770590680851,0.49934891,87.003,86.971,0.47046877]
[1770590682754,28.73365055,87.006,86.971,0.47046877]
[1770590682755,0.49934891,87.001,86.971,0.47046877]
[1770590684248,0.49934891,86.999,86.971,0.47046877]
[1770590686139,28.73365055,87.006,86.971,0.47046877]
[1770590686140,0.47429881,86.997,86.971,0.47046877]
[1770590687454,0.47429881,87.002,86.972,0.46986157]
[1770590688557,0.47429881,87.0,86.972,0.46986157]
[1770590688761,0.47429881,87.019,86.974,0.46986157]
[1770590688960,0.47429881,87.026,86.99,4.05949534]
[1770590689158,0.47429881,87.026,86.991,0.46986157]
[1770590690863,0.47429881,87.032,87.001,0.46986157]
[1770590692874,4.53379415,87.03,86.99,0.46986157]
[1770590693076,0.47429881,87.029,86.99,0.46986157]
[1770590695372,11.49055476,87.028,86.992,11.49528718]
[1770590695552,0.47429881,87.027,86.993,0.46986157]
[1770590696376,0.47429881,87.019,86.971,0.46986157]
[1770590696671,0.47429881,87.009,86.965,0.46986157]
[1770590696875,0.47429881,87.009,86.961,0.46986157]
[1770590697084,0.47429881,86.999,86.952,0.46986157]
[1770590697454,0.47429881,86.997,86.954,0.46986157]
[1770590697662,0.47429881,86.997,86.925,0.46986157]
[1770590697866,0.47429881,86.997,86.924,28.76043994]
[1770590697867,0.47429881,86.989,86.941,0.46986157]
[1770590698354,40.23080989,86.998,86.93,4.05949534]
[1770590698355,0.47429881,86.979,86.932,0.46986157]
[1770590698554,5.13032502,86.995,86.925,0.46986157]
[1770590698555,0.47429881,86.969,86.925,0.46986157]
[1770590699675,0.47429881,86.967,86.925,0.46986157]
[1770590699855,0.47429881,86.959,86.925,0.46986157]
[1770590700051,0.47429881,86.959,86.915,0.46986157]
[1770590702169,0.47429881,86.954,86.902,0.46986157]
[1770590702368,0.47429881,86.949,86.902,0.46986157]
[1770590702569,0.47429881,86.949,86.906,0.46986157]
[1770590702869,0.47429881,86.939,86.897,0.46986157]
[1770590703073,0.47429881,86.939,86.891,0.46986157]
[1770590703266,0.47429881,86.929,86.891,0.46986157]
[1770590704073,0.47429881,86.949,86.901,0.46986157]
[1770590704255,0.47429881,86.947,86.904,0.46986157]
[1770590704758,0.47429881,86.947,86.911,0.46986157]
[1770590706376,0.47429881,86.947,86.913,0.46986157]
[1770590707251,0.47429881,86.957,86.921,0.46986157]
[1770590707986,0.47429881,86.964,86.931,0.46986157]
[1770590708489,11.4991075,86.964,86.933,0.46986157]
[1770590708691,0.47429881,86.973,86.941,0.46986157]
[1770590708860,0.47429881,86.984,86.941,0.46986157]
[1770590709061,0.47429881,86.984,86.951,0.46986157]
[1770590709562,4.0685731,87.0,86.951,0.46986157]
[1770590709881,0.47429881,86.992,86.951,0.46986157]
[1770590710060,0.47429881,87.0,86.961,0.46986157]
[1770590710262,11.96762933,87.007,86.963,0.46986157]
[1770590710461,11.96762933,87.007,86.971,0.46986157]
[1770590711363,11.96762933,87.007,86.973,0.46986157]
[1770590711879,0.47429881,87.007,86.973,0.46986157]
[1770590712060,0.47429881,87.005,86.973,0.46986157]
[1770590712378,0.47429881,86.999,86.965,0.46986157]
[1770590713580,0.47429881,86.997,86.965,0.46986157]
[1770590716566,0.47523639,86.995,86.965,0.46986157]
[1770590717287,0.47523639,86.995,86.955,0.46941945]
[1770590718384,0.47523639,86.993,86.956,11.96948845]
[1770590718683,0.47523639,86.993,86.957,0.46941945]
[1770590719765,0.47523639,86.991,86.958,11.96922395]
[1770590719966,0.47523639,86.991,86.958,11.4998045]
[1770590720166,0.47523639,86.991,86.959,0.46941945]
[1770590721877,0.47523639,86.989,86.959,0.46941945]
[1770590722875,11.4955742,86.99,86.961,0.46941945]
[1770590723788,28.73356286,87.007,86.961,0.46941945]
[1770590723993,0.47523639,87.003,86.963,0.46941945]
[1770590725689,0.47523639,87.003,86.962,11.49927554]
[1770590725690,0.47523639,87.003,86.971,0.46941945]
[1770590725898,11.49306393,87.009,86.973,0.46941945]
[1770590730001,0.47523639,87.009,86.975,0.46941945]
[1770590730204,0.47523639,86.999,86.969,0.46941945]
[1770590730377,0.47523639,86.999,86.951,0.46941945]
[1770590730692,0.47523639,86.999,86.956,0.46941945]
[1770590732400,0.47523639,86.997,86.956,0.46941945]
[1770590735704,0.47523639,86.995,86.956,0.46941945]
[1770590737807,0.47523639,86.993,86.956,0.46941945]
[1770590740507,11.49530991,86.992,86.956,0.46941945]
[1770590740709,0.47523639,86.991,86.956,0.46941945]
[1770590743408,0.47523639,86.989,86.956,0.46941945]
[1770590746488,0.48064288,86.987,86.956,0.46941945]
[1770590748313,0.48064288,86.985,86.956,0.46941945]
[1770590751900,0.48064288,86.983,86.956,0.46941945]
[1770590752106,11.49636714,86.984,86.956,0.46941945]
[1770590753214,0.48064288,86.985,86.956,0.46941945]
[1770590755605,0.48064288,86.983,86.956,0.46941945]
[1770590755806,11.49636714,86.984,86.956,0.46941945]
[1770590756316,0.48064288,86.983,86.956,0.46941945]
[1770590758336,0.48064288,86.981,86.949,0.45844104]
[1770590761029,0.48064288,86.979,86.949,0.45844104]
[1770590762424,0.48064288,86.979,86.95,11.50086256]
[1770590762617,0.48064288,86.979,86.951,0.45844104]
[1770590763318,0.48064288,86.977,86.951,0.45844104]
[1770590764522,0.48064288,86.977,86.93,4.06624278]
[1770590764523,0.48064288,86.977,86.945,0.45844104]
[1770590764719,0.48064288,86.977,86.936,0.45844104]
[1770590765733,0.48064288,86.975,86.94,0.45844104]
[1770590767640,0.48064288,86.973,86.94,0.45844104]
[1770590768147,0.48064288,86.973,86.942,0.45844104]
[1770590768931,0.48064288,86.973,86.931,0.45844104]
[1770590769134,0.48064288,86.969,86.931,0.45844104]
[1770590769715,0.48064288,86.967,86.931,0.45844104]
[1770590770334,0.48064288,86.967,86.933,0.45844104]
[1770590772536,0.48064288,86.965,86.933,0.45844104]
[1770590775836,0.46541283,86.963,86.933,0.45844104]
[1770590778947,0.46541283,86.961,86.935,0.47629047]
[1770590780738,57.4832407,86.982,86.935,0.47629047]
[1770590780739,0.46541283,86.97,86.935,0.47629047]
[1770590780945,0.46541283,86.97,86.936,11.50271464]
[1770590781145,0.46541283,86.97,86.937,0.47629047]
[1770590781332,0.46541283,86.97,86.941,0.47629047]
[1770590783650,0.46541283,86.968,86.943,0.47629047]
[1770590787831,0.46541283,86.968,86.945,0.47629047]
[1770590790355,0.46541283,86.968,86.947,0.47629047]
[1770590798357,11.49861441,86.967,86.947,0.47629047]
[1770590798653,0.46541283,86.966,86.947,0.47629047]
[1770590804445,0.46541283,86.97,86.947,0.47629047]
[1770590807059,11.49834998,86.969,86.947,0.47629047]
[1770590808561,0.49842471,86.969,86.947,0.47629047]
[1770590809063,0.49842471,86.969,86.937,0.4925011]
[1770590809361,0.49842471,86.969,86.941,0.4925011]
[1770590809765,0.49842471,86.969,86.927,0.4925011]
[1770590809945,0.49842471,86.969,86.929,11.50359407]
[1770590810556,0.49842471,86.969,86.929,11.99609517]
[1770590810748,0.49842471,86.967,86.93,0.4925011]
[1770590813743,0.49842471,86.965,86.93,0.4925011]
[1770590813951,0.49842471,86.965,86.931,11.50337624]
[1770590815049,0.49842471,86.965,86.929,0.4925011]
[1770590816267,0.49842471,86.963,86.931,11.50337624]
[1770590818466,11.49927554,86.962,86.931,0.4925011]
[1770590818668,0.49842471,86.961,86.931,0.4925011]
[1770590821578,0.49842471,86.959,86.931,0.4925011]
[1770590822953,0.49842471,86.957,86.931,0.4925011]
[1770590823477,5.13032502,86.987,86.92,4.06857273]
[1770590823478,0.49842471,86.979,86.941,0.4925011]
[1770590825650,0.49842471,86.987,86.943,0.4925011]
[1770590826458,0.49842471,86.987,86.95,4.06857273]
[1770590826659,0.49842471,86.987,86.951,0.4925011]
[1770590829274,0.49842471,86.987,86.953,0.4925011]
[1770590829275,11.49610282,86.986,86.953,0.4925011]
[1770590829484,11.49553423,86.991,86.961,0.4925011]
[1770590830064,0.49842471,86.999,86.961,0.4925011]
[1770590831472,0.49842471,86.997,86.963,0.4925011]
[1770590833576,0.49842471,87.002,86.965,0.4925011]
[1770590833984,0.49842471,87.008,86.971,0.4925011]
[1770590834453,11.49250498,87.014,86.98,4.06857273]
[1770590834658,11.49125633,87.023,86.981,0.4925011]
[1770590835481,11.49125633,87.023,86.991,0.46958435]
[1770590835662,0.45118002,87.031,86.991,0.46958435]
[1770590835974,0.45118002,87.029,86.993,0.47412575]
[1770590838179,0.45118002,87.035,86.995,0.47412575]
[1770590838483,11.48910258,87.039,87.001,0.47412575]
[1770590839686,11.48910258,87.039,87.003,0.47412575]
[1770590840764,11.48835068,87.045,87.003,0.47412575]
[1770590840965,0.45118002,87.044,87.003,0.47412575]
[1770590841571,0.45118002,87.042,87.005,0.47412575]
[1770590843088,0.45118002,87.06,87.021,0.47412575]
[1770590843268,0.45118002,87.059,87.03,4.06857273]
[1770590843470,0.45118002,87.059,87.031,0.47412575]
[1770590843671,0.45118002,87.059,87.033,0.47412575]
[1770590845087,0.45118002,87.065,87.033,0.47412575]
[1770590845991,0.45118002,87.065,87.03,4.06857273]
[1770590845992,0.45118002,87.065,87.035,0.47412575]
[1770590847895,0.1,87.07,87.034,11.48976262]
[1770590847896,0.55118002,87.07,87.041,0.47412575]
[1770590848204,0.1,87.07,87.051,0.47412575]
[1770590850096,0.2738484,87.084,87.061,0.47412575]
[1770590850800,0.45118002,87.089,87.062,0.47412575]
[1770590851797,0.45118002,87.094,87.062,0.47412575]
[1770590851982,0.45118002,87.094,87.064,0.47412575]
[1770590852707,0.45118002,87.094,87.071,0.47412575]
[1770590853402,0.1,87.1,87.073,0.47412575]
[1770590854997,0.45118002,87.097,87.075,0.47412575]
[1770590855198,0.45118002,87.089,87.069,0.47412575]
[1770590855796,0.45118002,87.089,87.07,11.48496736]
[1770590856011,0.45118002,87.089,87.07,11.95909311]
[1770590856306,0.45118002,87.089,87.061,0.47412575]
[1770590857105,0.45118002,87.087,87.061,0.47412575]
[1770590857607,0.45118002,87.087,87.05,0.47412575]
[1770590857907,0.45118002,87.087,87.041,0.47412575]
[1770590858410,0.45118002,87.087,87.044,0.47412575]
[1770590859103,0.45118002,87.085,87.044,0.47412575]
[1770590860307,0.45118002,87.083,87.046,0.47412575]
[1770590862711,0.45118002,87.081,87.048,0.47412575]
[1770590863007,0.45118002,87.081,87.05,4.06857273]
[1770590863405,0.45118002,87.081,87.051,0.47412575]
[1770590865407,0.46544378,87.086,87.053,0.48286936]
[1770590868515,0.46544378,87.084,87.055,0.48286936]
[1770590869602,0.46544378,87.084,87.05,4.06857273]
[1770590869603,0.46544378,87.084,87.057,0.48286936]
[1770590869803,0.46544378,87.082,87.057,0.48286936]
[1770590874525,0.46544378,87.087,87.057,0.48286936]
[1770590876938,0.46544378,87.085,87.057,0.48286936]
[1770590878640,0.46544378,87.085,87.059,0.48286936]
[1770590878927,0.1,87.09,87.063,0.48286936]
[1770590880027,0.46544378,87.089,87.063,0.48286936]
[1770590882113,0.46544378,87.089,87.064,11.48580354]
[1770590882310,0.46544378,87.088,87.051,0.48286936]
[1770590884029,0.46544378,87.086,87.053,0.48286936]
[1770590884328,0.1,87.09,87.053,0.48286936]
[1770590884531,0.46544378,87.089,87.053,0.48286936]
[1770590885230,0.46544378,87.089,87.061,0.48286936]
[1770590889530,0.46544378,87.089,87.063,0.48286936]
[1770590892315,0.46544378,87.089,87.062,11.4860674]
[1770590892722,0.46544378,87.087,87.058,0.48286936]
[1770590892926,0.46544378,87.087,87.05,11.48755681]
[1770590893529,0.46544378,87.085,87.047,0.48286936]
[1770590894037,0.46544378,87.079,87.047,0.48286936]
[1770590895427,0.48788234,87.077,87.047,0.48286936]
[1770590897543,0.4774532,87.075,87.047,0.48193599]
[1770590898845,0.4774532,87.073,87.047,0.48193599]
[1770590906045,11.48474825,87.072,87.047,0.48193599]
[1770590906246,0.4774532,87.071,87.047,0.48193599]
[1770590907450,0.4774532,87.069,87.047,0.48193599]
[1770590908345,0.4774532,87.069,87.028,2.8]
[1770590908346,0.4774532,87.069,87.029,0.48193599]
[1770590908540,0.4774532,87.069,87.021,0.48193599]
[1770590908930,0.4774532,87.059,87.022,11.49129606]
[1770590909139,0.4774532,87.057,87.022,11.49129606]
[1770590909336,0.4774532,87.057,87.021,0.48193599]
[1770590909743,0.4774532,87.057,87.01,4.05573665]
[1770590909744,0.4774532,87.057,87.016,0.48193599]
[1770590910550,0.4774532,87.049,87.016,0.48193599]
[1770590910851,0.4774532,87.049,87.013,0.48193599]
[1770590911256,0.4774532,87.047,87.013,0.48193599]
[1770590913159,0.4774532,87.045,87.013,0.48193599]
[1770590915253,0.4774532,87.043,87.013,0.48193599]
[1770590917541,0.4774532,87.041,87.013,0.48193599]
[1770590918343,0.4774532,87.041,87.014,0.48193599]
[1770590918662,0.4774532,87.063,87.031,0.48193599]
[1770590919548,0.4774532,87.063,87.033,0.48193599]
[1770590922460,0.4774532,87.061,87.035,0.48193599]
[1770590923751,11.48633126,87.06,87.035,0.48193599]
[1770590923950,0.4774532,87.059,87.035,0.48193599]
[1770590926354,0.47777525,87.057,87.035,0.48193599]
[1770590927258,11.4860674,87.062,87.035,0.48193599]
[1770590927746,0.47777525,87.061,87.035,0.48193599]
[1770590928869,0.47777525,87.059,87.029,0.47172309]
[1770590929068,11.48633126,87.06,87.004,0.47172309]
[1770590929069,0.47777525,87.049,87.004,0.47172309]
[1770590929271,0.47777525,87.039,87.004,0.47172309]
[1770590929572,0.47777525,87.039,86.99,4.05573665]
[1770590929573,0.47777525,87.029,86.991,0.47172309]
[1770590930145,0.47777525,87.029,86.993,0.47172309]
[1770590932380,0.47777525,87.027,86.987,11.96765413]
[1770590933263,0.47777525,87.027,86.988,0.47172309]
[1770590933573,0.47777525,87.027,86.99,4.52745974]
[1770590934467,0.47777525,87.025,86.991,0.47172309]
[1770590935752,0.47777525,87.025,86.991,11.96716514]
[1770590936972,0.47777525,87.023,86.991,0.47172309]
[1770590939571,0.47777525,87.009,86.975,0.47172309]
[1770590942073,0.47777525,87.007,86.975,0.47172309]
[1770590943377,0.47777525,87.005,86.975,0.47172309]
[1770590946563,11.49372442,87.004,86.975,0.47172309]
[1770590947162,0.47777525,87.003,86.975,0.47172309]
[1770590948578,11.49398864,87.002,86.975,0.47172309]
[1770590948777,0.47777525,87.001,86.975,0.47172309]
[1770590949385,0.47777525,87.001,86.976,0.47172309]
[1770590950187,0.47777525,87.011,86.981,0.47172309]
[1770590950980,0.47777525,87.011,86.982,11.49663148]
[1770590951197,0.47777525,87.011,86.983,0.47172309]
[1770590953585,11.49229521,87.015,86.985,0.47172309]
[1770590953783,11.97007046,87.015,86.985,0.47172309]
[1770590954085,0.47777525,87.014,86.985,0.47172309]
[1770590955193,28.72414065,87.035,86.984,11.49636714]
[1770590955194,0.46639405,87.024,86.991,0.4920847]
[1770590955491,0.46639405,87.023,86.991,0.4920847]
[1770590957385,11.49026747,87.031,87.001,0.45808125]
[1770590957590,11.49026747,87.031,87.011,0.45808125]
[1770590958280,0.46330386,87.039,87.011,0.45808125]
[1770590958482,0.46330386,87.039,87.021,0.45808125]
[1770590958786,0.46330386,87.066,87.021,0.45808125]
[1770590959497,0.46330386,87.064,87.023,0.45808125]
[1770590961071,0.46330386,87.062,87.025,0.45808125]
[1770590963296,0.46330386,87.059,87.025,0.45808125]
[1770590963605,0.46330386,87.059,87.027,0.45808125]
[1770590965797,4.06372564,87.06,87.027,0.45808125]
[1770590965798,0.46330386,87.057,87.027,0.45808125]
[1770590966702,0.46330386,87.057,87.029,0.45808125]
[1770590967696,0.46330386,87.063,87.03,15.55401634]
[1770590967904,0.46330386,87.071,87.031,0.45808125]
[1770590968080,0.46330386,87.071,87.041,0.45808125]
[1770590970794,0.46330386,87.071,87.043,0.45808125]
[1770590970992,0.46330386,87.079,87.043,0.45808125]
[1770590971696,4.06372564,87.07,87.037,11.48928223]
[1770590971898,4.06372564,87.07,87.033,0.45808125]
[1770590971899,0.46330386,87.069,87.033,0.45808125]
[1770590972197,0.46330386,87.059,87.017,0.45808125]
[1770590972400,4.06372564,87.08,86.96,4.26372564]
[1770590972401,0.46330386,87.049,87.011,0.45808125]
[1770590972700,0.46330386,87.047,87.014,0.45808125]